[Event "Late-Titled-Tuesday-Blitz-May-07-2024"]
[Site "Chess.com"]
[Date "2024.05.07"]
[Round "7"]
[White "Statham_01"]
[Black "Nicolik"]
[Result "0-1"]
[WhiteElo "2622"]
[BlackElo "2504"]
[TimeControl "180+1"]
[EndTime "15:17:49 PDT"]
[Termination "Nicolik won by checkmate"]

1. Na3 {[%clk 0:03:00.9]} 1... d5 {[%clk 0:02:56.7]} 2. d4 {[%clk 0:03:00.7]}
2... Nc6 {[%clk 0:02:56.9]} 3. Nf3 {[%clk 0:03:00.3]} 3... Bf5 {[%clk
0:02:57.2]} 4. c3 {[%clk 0:02:59.5]} 4... e6 {[%clk 0:02:57]} 5. Nc2 {[%clk
0:02:59.4]} 5... Nf6 {[%clk 0:02:54.5]} 6. Bg5 {[%clk 0:02:59.4]} 6... h6 {[%clk
0:02:53]} 7. Bh4 {[%clk 0:02:59.1]} 7... g5 {[%clk 0:02:53.1]} 8. Bg3 {[%clk
0:02:59.3]} 8... Ne4 {[%clk 0:02:53.8]} 9. e3 {[%clk 0:02:54.9]} 9... h5 {[%clk
0:02:52]} 10. h4 {[%clk 0:02:46.8]} 10... Nxg3 {[%clk 0:02:50.4]} 11. fxg3
{[%clk 0:02:47.7]} 11... g4 {[%clk 0:02:50.8]} 12. Ng1 {[%clk 0:02:30.9]} 12...
Bd6 {[%clk 0:02:49.3]} 13. Kf2 {[%clk 0:02:28.3]} 13... Qf6 {[%clk 0:02:48.9]}
14. Ke2 {[%clk 0:02:15.9]} 14... Bxg3 {[%clk 0:02:46]} 15. Kd2 {[%clk
0:02:15.1]} 15... Bxh4 {[%clk 0:02:39.5]} 16. Bb5 {[%clk 0:02:11.3]} 16... Bg5
{[%clk 0:02:38.4]} 17. Ne2 {[%clk 0:02:08.4]} 17... Qg6 {[%clk 0:02:08.1]} 18.
Nb4 {[%clk 0:02:03.4]} 18... e5 {[%clk 0:01:11.3]} 19. dxe5 {[%clk 0:01:53.7]}
19... O-O {[%clk 0:01:04.9]} 20. Bxc6 {[%clk 0:01:44.5]} 20... bxc6 {[%clk
0:01:03.9]} 21. Nf4 {[%clk 0:01:45.1]} 21... Bxf4 {[%clk 0:00:59.7]} 22. exf4
{[%clk 0:01:46]} 22... Rab8 {[%clk 0:00:53.4]} 23. Kc1 {[%clk 0:01:20]} 23...
Rfd8 {[%clk 0:00:40.1]} 24. Nc2 {[%clk 0:01:17.3]} 24... c5 {[%clk 0:00:35.7]}
25. Ne3 {[%clk 0:00:40]} 25... d4 {[%clk 0:00:35.8]} 26. Nxf5 {[%clk 0:00:36.9]}
26... Qxf5 {[%clk 0:00:36.7]} 27. Qc2 {[%clk 0:00:35.9]} 27... Qxf4+ {[%clk
0:00:31]} 28. Qd2 {[%clk 0:00:35.4]} 28... Qxd2+ {[%clk 0:00:30.2]} 29. Kxd2
{[%clk 0:00:35.6]} 29... Rxb2+ {[%clk 0:00:30.9]} 30. Kd3 {[%clk 0:00:33.2]}
30... Rxg2 {[%clk 0:00:30.2]} 31. Rxh5 {[%clk 0:00:32]} 31... Rg3+ {[%clk
0:00:30.6]} 32. Kc4 {[%clk 0:00:31.9]} 32... Rxc3+ {[%clk 0:00:30.9]} 33. Kb5
{[%clk 0:00:32.5]} 33... Kf8 {[%clk 0:00:26.3]} 34. Rf1 {[%clk 0:00:31.1]} 34...
Ke7 {[%clk 0:00:26.2]} 35. Rhf5 {[%clk 0:00:11.8]} 35... Rf8 {[%clk 0:00:23.8]}
36. Rf6 {[%clk 0:00:12.1]} 36... Re3 {[%clk 0:00:22.4]} 37. Kxc5 {[%clk
0:00:09.3]} 37... Rxe5+ {[%clk 0:00:22.8]} 38. Kxd4 {[%clk 0:00:09.9]} 38... Re6
{[%clk 0:00:23.6]} 39. R6f4 {[%clk 0:00:09.2]} 39... Rg6 {[%clk 0:00:22.2]} 40.
Kc5 {[%clk 0:00:07.6]} 40... g3 {[%clk 0:00:22.3]} 41. Re4+ {[%clk 0:00:06.7]}
41... Kd7 {[%clk 0:00:20.8]} 42. Rd1+ {[%clk 0:00:06.9]} 42... Kc8 {[%clk
0:00:21.2]} 43. Ra4 {[%clk 0:00:07]} 43... g2 {[%clk 0:00:19.2]} 44. Rg1 {[%clk
0:00:03.1]} 44... Rh8 {[%clk 0:00:17.4]} 45. Rxa7 {[%clk 0:00:03.3]} 45... Rh1
{[%clk 0:00:17.4]} 46. Rxg2 {[%clk 0:00:01.7]} 46... Rxg2 {[%clk 0:00:18.3]} 47.
Kc6 {[%clk 0:00:02.3]} 47... Rc2+ {[%clk 0:00:18.3]} 48. Kd5 {[%clk 0:00:03]}
48... Rd1+ {[%clk 0:00:18.4]} 49. Ke5 {[%clk 0:00:03.6]} 49... Re2+ {[%clk
0:00:19.1]} 50. Kf6 {[%clk 0:00:04]} 50... Rf1+ {[%clk 0:00:19.6]} 51. Kg7
{[%clk 0:00:04.9]} 51... Rg2+ {[%clk 0:00:18.4]} 52. Kf8 {[%clk 0:00:05.1]}
52... f5 {[%clk 0:00:19.1]} 53. a4 {[%clk 0:00:05.8]} 53... f4 {[%clk
0:00:19.3]} 54. a5 {[%clk 0:00:06.3]} 54... Ra1 {[%clk 0:00:18.7]} 55. a6 {[%clk
0:00:06.5]} 55... Rga2 {[%clk 0:00:18.2]} 56. Ra8+ {[%clk 0:00:05.9]} 56... Kd7
{[%clk 0:00:18.7]} 57. Re8 {[%clk 0:00:04.8]} 57... Rxa6 {[%clk 0:00:18.9]} 58.
Re7+ {[%clk 0:00:05.7]} 58... Kd6 {[%clk 0:00:19]} 59. Re8 {[%clk 0:00:06.6]}
59... Ra8 {[%clk 0:00:19.2]} 60. Kg8 {[%clk 0:00:07.5]} 60... Rxe8+ {[%clk
0:00:19.2]} 61. Kg7 {[%clk 0:00:08.4]} 61... Re6 {[%clk 0:00:19.9]} 62. Kf7
{[%clk 0:00:09.3]} 62... c5 {[%clk 0:00:20]} 63. Kg7 {[%clk 0:00:10.2]} 63...
Ra7+ {[%clk 0:00:20.5]} 64. Kg8 {[%clk 0:00:10.3]} 64... Re8# {[%clk 0:00:20.7]}
0-1

[Event "Late-Titled-Tuesday-Blitz-May-07-2024"]
[Site "Chess.com"]
[Date "2024.05.07"]
[Round "7"]
[White "PNEPaul"]
[Black "martinmena"]
[Result "1/2-1/2"]
[WhiteElo "1943"]
[BlackElo "2133"]
[TimeControl "180+1"]
[EndTime "15:17:50 PDT"]
[Termination "Game drawn by repetition"]

1. e4 {[%clk 0:02:41.4]} 1... c6 {[%clk 0:02:58.2]} 2. d4 {[%clk 0:02:40.7]}
2... d5 {[%clk 0:02:59.1]} 3. Nc3 {[%clk 0:02:40.4]} 3... dxe4 {[%clk
0:02:58.1]} 4. f3 {[%clk 0:02:40.6]} 4... exf3 {[%clk 0:02:56.2]} 5. Nxf3 {[%clk
0:02:40.8]} 5... Bg4 {[%clk 0:02:56]} 6. Be2 {[%clk 0:02:40.4]} 6... Nf6 {[%clk
0:02:54.7]} 7. O-O {[%clk 0:02:40.3]} 7... e6 {[%clk 0:02:55.2]} 8. Bg5 {[%clk
0:02:38.7]} 8... Be7 {[%clk 0:02:55.1]} 9. Qd2 {[%clk 0:02:38.8]} 9... O-O
{[%clk 0:02:54.4]} 10. Ne5 {[%clk 0:02:37]} 10... Bxe2 {[%clk 0:02:53.3]} 11.
Nxe2 {[%clk 0:02:35.3]} 11... Ne4 {[%clk 0:02:51.4]} 12. Bxe7 {[%clk 0:02:31.9]}
12... Qxe7 {[%clk 0:02:40.4]} 13. Qe3 {[%clk 0:02:29.3]} 13... Nd6 {[%clk
0:02:38.6]} 14. b3 {[%clk 0:02:25]} 14... Nd7 {[%clk 0:02:37.5]} 15. c4 {[%clk
0:02:23.8]} 15... Nf5 {[%clk 0:02:36]} 16. Qc3 {[%clk 0:02:13]} 16... Nxe5
{[%clk 0:02:33.8]} 17. dxe5 {[%clk 0:02:12.4]} 17... Qg5 {[%clk 0:02:22.7]} 18.
Nd4 {[%clk 0:01:49.3]} 18... Nxd4 {[%clk 0:01:31.6]} 19. Qxd4 {[%clk 0:01:47.1]}
19... Rfd8 {[%clk 0:01:17]} 20. Qf4 {[%clk 0:01:46.4]} 20... Qxf4 {[%clk
0:01:16.2]} 21. Rxf4 {[%clk 0:01:46.3]} 21... Rd7 {[%clk 0:01:15.5]} 22. Raf1
{[%clk 0:01:44]} 22... Rad8 {[%clk 0:01:15.5]} 23. h3 {[%clk 0:01:43.4]} 23...
Re7 {[%clk 0:01:14.6]} 24. Kh2 {[%clk 0:01:38.2]} 24... Rd2 {[%clk 0:01:14]} 25.
R4f2 {[%clk 0:01:38.1]} 25... Red7 {[%clk 0:01:13.6]} 26. g4 {[%clk 0:01:33.1]}
26... Rxf2+ {[%clk 0:01:12.4]} 27. Rxf2 {[%clk 0:01:32.7]} 27... Rd1 {[%clk
0:01:08.6]} 28. Kg2 {[%clk 0:01:31.5]} 28... Re1 {[%clk 0:01:08.5]} 29. Rd2
{[%clk 0:01:27.2]} 29... g6 {[%clk 0:01:08.5]} 30. Rd7 {[%clk 0:01:23.3]} 30...
Rxe5 {[%clk 0:01:01]} 31. Rxb7 {[%clk 0:01:22.2]} 31... Re2+ {[%clk 0:01:00.8]}
32. Kf3 {[%clk 0:01:22.2]} 32... Rxa2 {[%clk 0:01:01.7]} 33. Ke4 {[%clk
0:01:20.7]} 33... a5 {[%clk 0:00:54.6]} 34. Kd4 {[%clk 0:01:18.9]} 34... a4
{[%clk 0:00:51.6]} 35. bxa4 {[%clk 0:01:17.6]} 35... Rxa4 {[%clk 0:00:51.3]} 36.
Rc7 {[%clk 0:01:16.8]} 36... Ra3 {[%clk 0:00:51.1]} 37. Rxc6 {[%clk 0:01:14]}
37... Rxh3 {[%clk 0:00:50.8]} 38. Rb6 {[%clk 0:01:07.5]} 38... Rg3 {[%clk
0:00:49.9]} 39. c5 {[%clk 0:01:06.8]} 39... Rxg4+ {[%clk 0:00:49.7]} 40. Ke5
{[%clk 0:01:06.5]} 40... Rc4 {[%clk 0:00:47.3]} 41. Kf6 {[%clk 0:01:03.6]} 41...
Rf4+ {[%clk 0:00:42]} 42. Ke7 {[%clk 0:01:01.2]} 42... h5 {[%clk 0:00:17]} 43.
c6 {[%clk 0:01:00.6]} 43... Rc4 {[%clk 0:00:05.5]} 44. Kd7 {[%clk 0:00:59.8]}
44... h4 {[%clk 0:00:05.9]} 45. Rb3 {[%clk 0:00:53.8]} 45... g5 {[%clk
0:00:05.8]} 46. c7 {[%clk 0:00:53.3]} 46... g4 {[%clk 0:00:06.2]} 47. Rb6 {[%clk
0:00:52.4]} 47... g3 {[%clk 0:00:05.4]} 48. Rc6 {[%clk 0:00:52.2]} 48... Rd4+
{[%clk 0:00:04.9]} 49. Ke7 {[%clk 0:00:51.6]} 49... g2 {[%clk 0:00:02.4]} 50.
c8=Q+ {[%clk 0:00:51.3]} 50... Kh7 {[%clk 0:00:02.9]} 51. Rc1 {[%clk 0:00:47.9]}
51... Rg4 {[%clk 0:00:03.1]} 52. Qf8 {[%clk 0:00:39.2]} 52... g1=Q {[%clk
0:00:02.3]} 53. Rxg1 {[%clk 0:00:37.5]} 53... Rxg1 {[%clk 0:00:03.2]} 54. Qd8
{[%clk 0:00:29.7]} 54... h3 {[%clk 0:00:02.4]} 55. Qd3+ {[%clk 0:00:29.6]} 55...
Rg6 {[%clk 0:00:02.7]} 56. Qxh3+ {[%clk 0:00:28.1]} 56... Kg7 {[%clk 0:00:02.7]}
57. Qc3+ {[%clk 0:00:27.1]} 57... Kg8 {[%clk 0:00:02]} 58. Qc8+ {[%clk
0:00:20.1]} 58... Kg7 {[%clk 0:00:02.5]} 59. Qc3+ {[%clk 0:00:20]} 59... Kg8
{[%clk 0:00:02.5]} 60. Qc8+ {[%clk 0:00:19.9]} 60... Kg7 {[%clk 0:00:02.6]} 61.
Qc3+ {[%clk 0:00:19.8]} 1/2-1/2

[Event "Late-Titled-Tuesday-Blitz-May-07-2024"]
[Site "Chess.com"]
[Date "2024.05.07"]
[Round "7"]
[White "penguingm1"]
[Black "only_strong_moves"]
[Result "0-1"]
[WhiteElo "2877"]
[BlackElo "2709"]
[TimeControl "180+1"]
[EndTime "15:17:51 PDT"]
[Termination "only_strong_moves won by resignation"]

1. d4 {[%clk 0:03:00.9]} 1... Nf6 {[%clk 0:02:59.9]} 2. c4 {[%clk 0:02:58]} 2...
e6 {[%clk 0:02:58.9]} 3. Nc3 {[%clk 0:02:57.8]} 3... d5 {[%clk 0:02:57.9]} 4.
cxd5 {[%clk 0:02:58.1]} 4... exd5 {[%clk 0:02:58.1]} 5. Bg5 {[%clk 0:02:58.5]}
5... c6 {[%clk 0:02:58.5]} 6. e3 {[%clk 0:02:59.1]} 6... Be7 {[%clk 0:02:58.9]}
7. Bd3 {[%clk 0:02:59]} 7... O-O {[%clk 0:02:59.6]} 8. Nge2 {[%clk 0:02:59.1]}
8... Nbd7 {[%clk 0:03:00.3]} 9. Qc2 {[%clk 0:02:59.6]} 9... Re8 {[%clk
0:03:00.8]} 10. O-O {[%clk 0:02:59.8]} 10... Nf8 {[%clk 0:03:01.5]} 11. f3
{[%clk 0:02:59.3]} 11... Nh5 {[%clk 0:03:01.7]} 12. Bxe7 {[%clk 0:02:59.6]}
12... Qxe7 {[%clk 0:03:02.6]} 13. e4 {[%clk 0:03:00.3]} 13... dxe4 {[%clk
0:02:59.3]} 14. fxe4 {[%clk 0:03:01.2]} 14... Bg4 {[%clk 0:02:59.4]} 15. Rf2
{[%clk 0:02:54.9]} 15... Rad8 {[%clk 0:02:58.4]} 16. Raf1 {[%clk 0:02:53.9]}
16... Bxe2 {[%clk 0:02:33.7]} 17. Bxe2 {[%clk 0:02:41.5]} 17... Qg5 {[%clk
0:02:25.6]} 18. Rxf7 {[%clk 0:02:35.4]} 18... Nf6 {[%clk 0:01:59]} 19. Qb3
{[%clk 0:02:33.2]} 19... Ne6 {[%clk 0:01:37.7]} 20. R7xf6 {[%clk 0:02:03.5]}
20... gxf6 {[%clk 0:01:36.3]} 21. Bc4 {[%clk 0:02:04]} 21... Kf7 {[%clk
0:00:32.8]} 22. e5 {[%clk 0:01:59.4]} 22... f5 {[%clk 0:00:05.4]} 23. Ne4 {[%clk
0:01:57.2]} 23... Qg4 {[%clk 0:00:02.8]} 24. Qxb7+ {[%clk 0:01:10.8]} 24... Kg6
{[%clk 0:00:03]} 25. Nf6 {[%clk 0:00:44.3]} 25... Qxd4+ {[%clk 0:00:03.9]} 26.
Kh1 {[%clk 0:00:44.1]} 26... Qxe5 {[%clk 0:00:01.7]} 27. Nxe8 {[%clk 0:00:39.5]}
27... Rxe8 {[%clk 0:00:02.6]} 28. Qxc6 {[%clk 0:00:38.5]} 28... Re7 {[%clk
0:00:03.3]} 29. Bd3 {[%clk 0:00:35.8]} 29... Kg7 {[%clk 0:00:03.1]} 30. Rxf5
{[%clk 0:00:31.9]} 30... Qe3 {[%clk 0:00:03.5]} 31. Rf3 {[%clk 0:00:28.7]} 31...
Qe1+ {[%clk 0:00:03.2]} 32. Rf1 {[%clk 0:00:28.9]} 32... Qe3 {[%clk 0:00:03.8]}
33. Bc4 {[%clk 0:00:26.2]} 33... Nf4 {[%clk 0:00:03.5]} 34. g3 {[%clk
0:00:20.2]} 34... Ng6 {[%clk 0:00:03.7]} 35. Qf6+ {[%clk 0:00:19.7]} 35... Kh6
{[%clk 0:00:04.4]} 36. Rf4 {[%clk 0:00:14.9]} 36... Qe1+ {[%clk 0:00:04.3]} 37.
Kg2 {[%clk 0:00:15.3]} 37... Qd2+ {[%clk 0:00:05]} 38. Kh3 {[%clk 0:00:15.4]}
38... Qd7+ {[%clk 0:00:04.4]} 39. Kg2 {[%clk 0:00:07.2]} 39... Qd2+ {[%clk
0:00:05]} 40. Rf2 {[%clk 0:00:06.6]} 40... Qe3 {[%clk 0:00:04.4]} 41. Bd5 {[%clk
0:00:04.9]} 41... Re5 {[%clk 0:00:03.6]} 42. Bf3 {[%clk 0:00:04.2]} 42... Qd3
{[%clk 0:00:02.6]} 43. h4 {[%clk 0:00:03.6]} 43... Rf5 {[%clk 0:00:02.9]} 44.
Qc3 {[%clk 0:00:03.6]} 44... Qd6 {[%clk 0:00:02.6]} 45. Qe3+ {[%clk 0:00:03.2]}
45... Kg7 {[%clk 0:00:02.5]} 46. h5 {[%clk 0:00:03.9]} 46... Ne5 {[%clk
0:00:02.9]} 47. Be4 {[%clk 0:00:03.8]} 47... Rxf2+ {[%clk 0:00:03.3]} 48. Qxf2
{[%clk 0:00:04.2]} 48... Qe6 {[%clk 0:00:03.1]} 49. Qf4 {[%clk 0:00:04.1]} 49...
Nf7 {[%clk 0:00:02.7]} 50. Bf5 {[%clk 0:00:03.1]} 50... Qe2+ {[%clk 0:00:03.2]}
51. Qf2 {[%clk 0:00:02.9]} 51... Qe5 {[%clk 0:00:03.8]} 52. Bd3 {[%clk
0:00:02.3]} 52... Qd5+ {[%clk 0:00:03.9]} 53. Qf3 {[%clk 0:00:02.7]} 53... Qd6
{[%clk 0:00:03.6]} 54. Qg4+ {[%clk 0:00:03.2]} 54... Kf8 {[%clk 0:00:03.7]} 55.
Qf5 {[%clk 0:00:03.7]} 55... Ke7 {[%clk 0:00:03.3]} 56. Bc4 {[%clk 0:00:04]}
56... Ne5 {[%clk 0:00:03.5]} 57. Qg5+ {[%clk 0:00:04.6]} 57... Kd7 {[%clk
0:00:03.3]} 58. Be2 {[%clk 0:00:04.9]} 58... Qd5+ {[%clk 0:00:03.3]} 59. Kg1
{[%clk 0:00:02.5]} 59... Nf3+ {[%clk 0:00:03.3]} 60. Bxf3 {[%clk 0:00:02.3]}
60... Qxg5 {[%clk 0:00:04.2]} 0-1

[Event "Late-Titled-Tuesday-Blitz-May-07-2024"]
[Site "Chess.com"]
[Date "2024.05.07"]
[Round "7"]
[White "The_Machine04"]
[Black "rynos0411"]
[Result "1-0"]
[WhiteElo "2782"]
[BlackElo "2551"]
[TimeControl "180+1"]
[EndTime "15:17:58 PDT"]
[Termination "The_Machine04 won by resignation"]

1. d4 {[%clk 0:03:00.9]} 1... Nf6 {[%clk 0:03:00]} 2. Nf3 {[%clk 0:03:00.6]}
2... e6 {[%clk 0:03:00.2]} 3. Nbd2 {[%clk 0:03:00.8]} 3... c5 {[%clk 0:02:52.3]}
4. e3 {[%clk 0:03:00.9]} 4... d5 {[%clk 0:02:50.5]} 5. c3 {[%clk 0:03:01]} 5...
Nc6 {[%clk 0:02:50.9]} 6. Bd3 {[%clk 0:03:01.2]} 6... Bd6 {[%clk 0:02:51.2]} 7.
O-O {[%clk 0:03:01.6]} 7... O-O {[%clk 0:02:50.4]} 8. dxc5 {[%clk 0:03:02.1]}
8... Bxc5 {[%clk 0:02:50.6]} 9. b4 {[%clk 0:03:03]} 9... Bd6 {[%clk 0:02:50.2]}
10. Bb2 {[%clk 0:03:03.4]} 10... Qe7 {[%clk 0:02:42.9]} 11. a3 {[%clk
0:03:03.1]} 11... Rd8 {[%clk 0:02:40]} 12. c4 {[%clk 0:03:01.1]} 12... dxc4
{[%clk 0:02:38.9]} 13. Nxc4 {[%clk 0:03:02]} 13... Bc7 {[%clk 0:02:36.6]} 14.
Qc2 {[%clk 0:03:02.2]} 14... e5 {[%clk 0:02:35.6]} 15. b5 {[%clk 0:02:35.1]}
15... e4 {[%clk 0:02:21.4]} 16. Bxf6 {[%clk 0:02:34.3]} 16... Qxf6 {[%clk
0:02:21.5]} 17. Bxe4 {[%clk 0:02:34]} 17... Ne7 {[%clk 0:02:17.9]} 18. Bxh7+
{[%clk 0:02:29.9]} 18... Kh8 {[%clk 0:02:18.2]} 19. Be4 {[%clk 0:02:29.7]} 19...
Rb8 {[%clk 0:02:11.6]} 20. Rad1 {[%clk 0:02:25.4]} 20... Be6 {[%clk 0:02:12]}
21. Rxd8+ {[%clk 0:02:10.3]} 21... Rxd8 {[%clk 0:02:07.4]} 22. Bxb7 {[%clk
0:02:09.9]} 22... Rb8 {[%clk 0:02:08]} 23. Bc6 {[%clk 0:02:00.9]} 23... Nxc6
{[%clk 0:02:06.5]} 24. bxc6 {[%clk 0:02:01.8]} 24... Bd5 {[%clk 0:02:07.1]} 25.
e4 {[%clk 0:01:58.5]} 25... Bxc6 {[%clk 0:02:02.6]} 26. Ne3 {[%clk 0:01:53.9]}
26... Bb6 {[%clk 0:01:54.9]} 27. Nd5 {[%clk 0:01:51.4]} 27... Bxd5 {[%clk
0:01:55.1]} 28. exd5 {[%clk 0:01:52.3]} 28... Rd8 {[%clk 0:01:55.1]} 29. Rd1
{[%clk 0:01:51.6]} 29... Rd6 {[%clk 0:01:50.9]} 30. a4 {[%clk 0:01:37]} 30... g6
{[%clk 0:01:49.9]} 31. Qe4 {[%clk 0:01:35.7]} 31... Kg7 {[%clk 0:01:46]} 32. Qe5
{[%clk 0:01:34.7]} 32... Bc5 {[%clk 0:01:27.5]} 33. h4 {[%clk 0:01:30.3]} 33...
a5 {[%clk 0:01:19.4]} 34. g4 {[%clk 0:01:25.5]} 34... Rd8 {[%clk 0:01:06.9]} 35.
Kg2 {[%clk 0:01:12.7]} 35... Bd6 {[%clk 0:01:02]} 36. Qxf6+ {[%clk 0:01:08.9]}
36... Kxf6 {[%clk 0:01:02.9]} 37. Rd3 {[%clk 0:01:02]} 37... Rc8 {[%clk
0:01:00]} 38. Ng5 {[%clk 0:01:02]} 38... Rc4 {[%clk 0:00:58.6]} 39. Rf3+ {[%clk
0:01:01.9]} 39... Ke7 {[%clk 0:00:52.8]} 40. Rxf7+ {[%clk 0:01:00]} 40... Ke8
{[%clk 0:00:53.1]} 41. f3 {[%clk 0:00:46.7]} 41... Rxa4 {[%clk 0:00:51]} 42. Rf6
{[%clk 0:00:42.9]} 42... Ra2+ {[%clk 0:00:50.7]} 43. Kf1 {[%clk 0:00:43]} 43...
Ke7 {[%clk 0:00:50.7]} 44. Rxg6 {[%clk 0:00:40.6]} 44... Rh2 {[%clk 0:00:50.2]}
45. h5 {[%clk 0:00:39.6]} 45... a4 {[%clk 0:00:50]} 46. Ne4 {[%clk 0:00:36.7]}
46... Bb4 {[%clk 0:00:20.1]} 47. Ra6 {[%clk 0:00:31.3]} 47... a3 {[%clk
0:00:20.3]} 48. h6 {[%clk 0:00:30.4]} 48... a2 {[%clk 0:00:19.3]} 49. h7 {[%clk
0:00:22.2]} 49... Rxh7 {[%clk 0:00:17.8]} 50. Rxa2 {[%clk 0:00:18.2]} 50... Rh1+
{[%clk 0:00:17.8]} 51. Kg2 {[%clk 0:00:18.2]} 51... Rd1 {[%clk 0:00:18.4]} 52.
Ra7+ {[%clk 0:00:16.1]} 52... Kf8 {[%clk 0:00:18.4]} 53. Ra8+ {[%clk 0:00:14.9]}
53... Ke7 {[%clk 0:00:18.5]} 54. Ra7+ {[%clk 0:00:15.4]} 54... Kf8 {[%clk
0:00:19]} 55. Rd7 {[%clk 0:00:15.4]} 55... Ke8 {[%clk 0:00:19]} 56. Nf6+ {[%clk
0:00:14.7]} 56... Kf8 {[%clk 0:00:19.6]} 57. g5 {[%clk 0:00:14.9]} 57... Be7
{[%clk 0:00:20]} 58. Ne4 {[%clk 0:00:14.7]} 58... Rd4 {[%clk 0:00:15.3]} 59. d6
{[%clk 0:00:14]} 59... Bxg5 {[%clk 0:00:11.7]} 60. Nxg5 {[%clk 0:00:13]} 60...
Ra4 {[%clk 0:00:12.5]} 61. Ne4 {[%clk 0:00:13.1]} 61... Ke8 {[%clk 0:00:12.9]}
62. Re7+ {[%clk 0:00:13.5]} 62... Kd8 {[%clk 0:00:13.4]} 63. Kg3 {[%clk
0:00:14.2]} 63... Ra5 {[%clk 0:00:13.5]} 64. Kf4 {[%clk 0:00:14]} 64... Rh5
{[%clk 0:00:13.4]} 65. Re5 {[%clk 0:00:14.1]} 65... Rh4+ {[%clk 0:00:13.5]} 66.
Kg5 {[%clk 0:00:14.6]} 66... Rh3 {[%clk 0:00:13.7]} 67. f4 {[%clk 0:00:14.9]}
67... Rh8 {[%clk 0:00:13.9]} 68. Nf6 {[%clk 0:00:15]} 68... Rf8 {[%clk
0:00:11.8]} 69. Rb5 {[%clk 0:00:14.8]} 69... Kc8 {[%clk 0:00:11.2]} 70. Rc5+
{[%clk 0:00:14.9]} 70... Kd8 {[%clk 0:00:11.5]} 71. Ra5 {[%clk 0:00:15.1]} 71...
Kc8 {[%clk 0:00:12]} 72. Ra8+ {[%clk 0:00:15.2]} 1-0

[Event "Late-Titled-Tuesday-Blitz-May-07-2024"]
[Site "Chess.com"]
[Date "2024.05.07"]
[Round "7"]
[White "jefferyx"]
[Black "GianmarcoVaR"]
[Result "0-1"]
[WhiteElo "3095"]
[BlackElo "2789"]
[TimeControl "180+1"]
[EndTime "15:18:01 PDT"]
[Termination "GianmarcoVaR won by resignation"]

1. d4 {[%clk 0:03:00.9]} 1... Nf6 {[%clk 0:02:59.6]} 2. c4 {[%clk 0:03:01.3]}
2... e6 {[%clk 0:02:59.6]} 3. Nc3 {[%clk 0:03:01.7]} 3... Bb4 {[%clk 0:03:00.2]}
4. Nf3 {[%clk 0:03:00.1]} 4... b6 {[%clk 0:02:58.9]} 5. Qc2 {[%clk 0:02:57]}
5... Bb7 {[%clk 0:02:57.9]} 6. a3 {[%clk 0:02:57.1]} 6... Bxc3+ {[%clk
0:02:57.2]} 7. Qxc3 {[%clk 0:02:58]} 7... O-O {[%clk 0:02:51]} 8. e3 {[%clk
0:02:57.6]} 8... d6 {[%clk 0:02:49.6]} 9. Be2 {[%clk 0:02:57.7]} 9... Nbd7
{[%clk 0:02:48.9]} 10. O-O {[%clk 0:02:58]} 10... Ne4 {[%clk 0:02:48.5]} 11. Qc2
{[%clk 0:02:58.4]} 11... Qe7 {[%clk 0:02:45.9]} 12. b4 {[%clk 0:02:57.5]} 12...
c5 {[%clk 0:02:37.9]} 13. Bb2 {[%clk 0:02:56.7]} 13... Rac8 {[%clk 0:02:36.9]}
14. dxc5 {[%clk 0:02:48.8]} 14... dxc5 {[%clk 0:02:27.1]} 15. b5 {[%clk
0:02:49.1]} 15... Ng5 {[%clk 0:02:17.4]} 16. Nd2 {[%clk 0:02:41.7]} 16... e5
{[%clk 0:02:15.4]} 17. a4 {[%clk 0:02:31.3]} 17... e4 {[%clk 0:01:44]} 18. a5
{[%clk 0:01:40.7]} 18... f5 {[%clk 0:01:28.3]} 19. axb6 {[%clk 0:01:40.3]} 19...
axb6 {[%clk 0:01:28.5]} 20. Ra7 {[%clk 0:01:40.3]} 20... Rc7 {[%clk 0:01:22.1]}
21. Rd1 {[%clk 0:01:34]} 21... Ne5 {[%clk 0:01:12.9]} 22. Nf1 {[%clk 0:01:28.8]}
22... Nd3 {[%clk 0:01:05]} 23. Bxd3 {[%clk 0:00:44.2]} 23... exd3 {[%clk
0:01:01.6]} 24. Qxd3 {[%clk 0:00:45.1]} 24... Be4 {[%clk 0:00:40.4]} 25. Rxc7
{[%clk 0:00:43.8]} 25... Qxc7 {[%clk 0:00:41.3]} 26. Qd7 {[%clk 0:00:43.3]}
26... Qxd7 {[%clk 0:00:37.8]} 27. Rxd7 {[%clk 0:00:44.2]} 27... Rf7 {[%clk
0:00:33.7]} 28. Rd8+ {[%clk 0:00:43.1]} 28... Rf8 {[%clk 0:00:34.1]} 29. Rd7
{[%clk 0:00:44]} 29... Rf7 {[%clk 0:00:27.9]} 30. Rd6 {[%clk 0:00:44.5]} 30...
Rb7 {[%clk 0:00:28.5]} 31. f3 {[%clk 0:00:38.6]} 31... Bc2 {[%clk 0:00:27.7]}
32. Nd2 {[%clk 0:00:33.9]} 32... Nf7 {[%clk 0:00:23.9]} 33. Rd5 {[%clk
0:00:32.4]} 33... Ra7 {[%clk 0:00:20.8]} 34. Be5 {[%clk 0:00:13.9]} 34... Nxe5
{[%clk 0:00:14.1]} 35. Rxe5 {[%clk 0:00:14.8]} 35... Rd7 {[%clk 0:00:14]} 36.
Rd5 {[%clk 0:00:09.1]} 36... Rxd5 {[%clk 0:00:12.6]} 37. cxd5 {[%clk 0:00:10]}
37... Bd3 {[%clk 0:00:12.5]} 38. e4 {[%clk 0:00:09.7]} 38... Bxb5 {[%clk
0:00:11.3]} 39. Kf2 {[%clk 0:00:09.1]} 39... f4 {[%clk 0:00:08.1]} 40. g3 {[%clk
0:00:07.1]} 40... g5 {[%clk 0:00:08.3]} 41. e5 {[%clk 0:00:06.7]} 41... Bd3
{[%clk 0:00:06.4]} 42. e6 {[%clk 0:00:04.5]} 42... Kf8 {[%clk 0:00:03]} 43. d6
{[%clk 0:00:05.1]} 43... c4 {[%clk 0:00:03.2]} 44. Ke1 {[%clk 0:00:02.4]} 44...
b5 {[%clk 0:00:02.9]} 45. Kd1 {[%clk 0:00:02.8]} 45... Ke8 {[%clk 0:00:02.3]}
46. Kc1 {[%clk 0:00:03]} 46... Bf5 {[%clk 0:00:02.1]} 47. e7 {[%clk 0:00:02.8]}
47... Kd7 {[%clk 0:00:02.3]} 48. Kb2 {[%clk 0:00:03.4]} 48... Bg6 {[%clk
0:00:02.7]} 49. gxf4 {[%clk 0:00:00.7]} 49... gxf4 {[%clk 0:00:03]} 50. Kc3
{[%clk 0:00:01.5]} 50... Kxd6 {[%clk 0:00:03.4]} 51. Kb4 {[%clk 0:00:02.4]}
51... Kxe7 {[%clk 0:00:03.1]} 52. Kxb5 {[%clk 0:00:02.6]} 52... c3 {[%clk
0:00:02.9]} 53. Nb3 {[%clk 0:00:03.3]} 53... Bf7 {[%clk 0:00:02]} 54. Nd4 {[%clk
0:00:02.6]} 54... Bd5 {[%clk 0:00:02.2]} 55. Kb4 {[%clk 0:00:02.5]} 55... c2
{[%clk 0:00:02.1]} 56. Nxc2 {[%clk 0:00:02.3]} 56... Bxf3 {[%clk 0:00:02]} 57.
Kc5 {[%clk 0:00:02.9]} 57... Be4 {[%clk 0:00:02.2]} 58. Nd4 {[%clk 0:00:02.5]}
58... Kf6 {[%clk 0:00:02.5]} 59. Ne2 {[%clk 0:00:01.4]} 59... Ke5 {[%clk
0:00:02.9]} 60. Ng3 {[%clk 0:00:02.3]} 60... fxg3 {[%clk 0:00:03.2]} 61. hxg3
{[%clk 0:00:03.2]} 61... Kf5 {[%clk 0:00:03.9]} 0-1